[Event "Early-Titled-Tuesday-Blitz-April-02-2024"]
[Site "Chess.com"]
[Date "2024.04.02"]
[Round "3"]
[White "Dacean99"]
[Black "moro182"]
[Result "0-1"]
[WhiteElo "2669"]
[BlackElo "2892"]
[TimeControl "180+1"]
[EndTime "8:27:51 PDT"]
[Termination "moro182 won by checkmate"]

1. e4 {[%clk 0:03:00.9]} 1... g6 {[%clk 0:03:00.9]} 2. d4 {[%clk 0:03:00.7]}
2... Bg7 {[%clk 0:03:01.8]} 3. Nf3 {[%clk 0:03:00.7]} 3... d6 {[%clk 0:03:01.9]}
4. c3 {[%clk 0:02:58.8]} 4... Nf6 {[%clk 0:03:01.9]} 5. Bd3 {[%clk 0:02:57.8]}
5... O-O {[%clk 0:03:02.1]} 6. O-O {[%clk 0:02:57.8]} 6... Nc6 {[%clk
0:03:02.7]} 7. Re1 {[%clk 0:02:56.9]} 7... e5 {[%clk 0:03:02.4]} 8. dxe5 {[%clk
0:02:55.2]} 8... dxe5 {[%clk 0:03:02.3]} 9. h3 {[%clk 0:02:52.1]} 9... Nh5
{[%clk 0:03:02.1]} 10. Bb5 {[%clk 0:02:49.5]} 10... Qe8 {[%clk 0:02:53.8]} 11.
Be3 {[%clk 0:02:46]} 11... a6 {[%clk 0:02:52.4]} 12. Ba4 {[%clk 0:02:45.8]}
12... b5 {[%clk 0:02:42.4]} 13. Bb3 {[%clk 0:02:44]} 13... Nf4 {[%clk
0:02:30.4]} 14. Nbd2 {[%clk 0:02:22]} 14... Bb7 {[%clk 0:02:12.3]} 15. Nf1
{[%clk 0:02:14.5]} 15... Rd8 {[%clk 0:02:10]} 16. Qc2 {[%clk 0:02:11.5]} 16...
Qe7 {[%clk 0:02:08.5]} 17. Rad1 {[%clk 0:02:05.5]} 17... Na5 {[%clk 0:02:05.2]}
18. a4 {[%clk 0:01:51.7]} 18... Nxb3 {[%clk 0:01:50.3]} 19. Qxb3 {[%clk
0:01:50.5]} 19... Nd3 {[%clk 0:01:47]} 20. Rxd3 {[%clk 0:01:38.7]} 20... Rxd3
{[%clk 0:01:42.8]} 21. axb5 {[%clk 0:01:39.1]} 21... Qe6 {[%clk 0:01:25]} 22.
Qb4 {[%clk 0:01:21.1]} 22... Rfd8 {[%clk 0:01:09.9]} 23. Ng3 {[%clk 0:01:16.3]}
23... h6 {[%clk 0:01:02.6]} 24. Qc5 {[%clk 0:01:11.4]} 24... Qd6 {[%clk
0:00:53.5]} 25. Qa7 {[%clk 0:01:02.9]} 25... Bc8 {[%clk 0:00:47.8]} 26. Bc5
{[%clk 0:00:57.3]} 26... Qe6 {[%clk 0:00:41.4]} 27. bxa6 {[%clk 0:00:52.6]}
27... Qc6 {[%clk 0:00:37.5]} 28. Be3 {[%clk 0:00:43.5]} 28... Bxa6 {[%clk
0:00:35.7]} 29. Kh2 {[%clk 0:00:24]} 29... Ra8 {[%clk 0:00:35.5]} 30. Qc5 {[%clk
0:00:23.6]} 30... Qxc5 {[%clk 0:00:35.8]} 31. Bxc5 {[%clk 0:00:24.4]} 31... Bc4
{[%clk 0:00:35.8]} 32. Ba3 {[%clk 0:00:20.7]} 32... Bb3 {[%clk 0:00:33.1]} 33.
Re2 {[%clk 0:00:20.2]} 33... Rad8 {[%clk 0:00:32.2]} 34. Nf1 {[%clk 0:00:19.8]}
34... f6 {[%clk 0:00:29.5]} 35. N1d2 {[%clk 0:00:18.5]} 35... Bd1 {[%clk
0:00:26]} 36. Re3 {[%clk 0:00:16]} 36... Rxd2 {[%clk 0:00:25]} 37. Nxd2 {[%clk
0:00:15.8]} 37... Rxd2 {[%clk 0:00:25.9]} 38. Kg3 {[%clk 0:00:15.3]} 38... h5
{[%clk 0:00:25]} 39. f3 {[%clk 0:00:15.3]} 39... Bh6 {[%clk 0:00:25]} 40. Re1
{[%clk 0:00:15.8]} 40... Bf4+ {[%clk 0:00:25.1]} 41. Kh4 {[%clk 0:00:15.7]}
41... Rxg2 {[%clk 0:00:23.6]} 42. Rxd1 {[%clk 0:00:11.6]} 42... Bg5# {[%clk
0:00:23.5]} 0-1

[Event "Early-Titled-Tuesday-Blitz-April-02-2024"]
[Site "Chess.com"]
[Date "2024.04.02"]
[Round "3"]
[White "Elprofessor21"]
[Black "eljanov"]
[Result "0-1"]
[WhiteElo "2665"]
[BlackElo "2887"]
[TimeControl "180+1"]
[EndTime "8:27:52 PDT"]
[Termination "eljanov won by resignation"]

1. e4 {[%clk 0:03:00.9]} 1... c6 {[%clk 0:03:00]} 2. Nf3 {[%clk 0:02:55.7]} 2...
d5 {[%clk 0:03:00.9]} 3. Nc3 {[%clk 0:02:54.7]} 3... dxe4 {[%clk 0:03:01.1]} 4.
Nxe4 {[%clk 0:02:55.6]} 4... Nf6 {[%clk 0:03:01.7]} 5. d3 {[%clk 0:02:54.9]}
5... c5 {[%clk 0:02:50.5]} 6. Be2 {[%clk 0:02:51.3]} 6... Nc6 {[%clk 0:02:48.9]}
7. O-O {[%clk 0:02:51.6]} 7... e6 {[%clk 0:02:45.3]} 8. Be3 {[%clk 0:02:40.1]}
8... Nd4 {[%clk 0:02:28.9]} 9. c3 {[%clk 0:02:27.5]} 9... Nxe2+ {[%clk
0:02:28.6]} 10. Qxe2 {[%clk 0:02:27.2]} 10... Qc7 {[%clk 0:02:14.1]} 11. Nxf6+
{[%clk 0:02:07.7]} 11... gxf6 {[%clk 0:02:14.1]} 12. d4 {[%clk 0:02:08.3]} 12...
Bd7 {[%clk 0:02:09.5]} 13. dxc5 {[%clk 0:01:50.5]} 13... Bxc5 {[%clk 0:02:09.3]}
14. Bxc5 {[%clk 0:01:41.6]} 14... Qxc5 {[%clk 0:02:09.3]} 15. Rfd1 {[%clk
0:01:32.3]} 15... O-O-O {[%clk 0:02:08.4]} 16. b4 {[%clk 0:01:25.2]} 16... Qc7
{[%clk 0:01:58.6]} 17. c4 {[%clk 0:01:11.1]} 17... Ba4 {[%clk 0:01:57.2]} 18.
Rxd8+ {[%clk 0:01:02.5]} 18... Rxd8 {[%clk 0:01:58.1]} 19. b5 {[%clk 0:00:54.4]}
19... Qc5 {[%clk 0:01:43.5]} 20. h3 {[%clk 0:00:31.1]} 20... Rd6 {[%clk
0:01:39.1]} 21. Qe4 {[%clk 0:00:26.4]} 21... h5 {[%clk 0:01:33.8]} 22. Qh4
{[%clk 0:00:24.6]} 22... Qf5 {[%clk 0:01:31.5]} 23. c5 {[%clk 0:00:22.4]} 23...
Rd1+ {[%clk 0:01:31.8]} 24. Rxd1 {[%clk 0:00:22.3]} 24... Bxd1 {[%clk
0:01:32.7]} 25. Qd4 {[%clk 0:00:15.1]} 25... Bxf3 {[%clk 0:00:39.7]} 26. gxf3
{[%clk 0:00:14.2]} 26... Qb1+ {[%clk 0:00:39.8]} 27. Kg2 {[%clk 0:00:07.5]}
27... Qxb5 {[%clk 0:00:39.9]} 28. Qd6 {[%clk 0:00:07.4]} 28... Qd7 {[%clk
0:00:35.9]} 29. Qf8+ {[%clk 0:00:08]} 29... Kc7 {[%clk 0:00:35.4]} 30. Qh8
{[%clk 0:00:08.8]} 30... Qe7 {[%clk 0:00:33.3]} 31. Qxh5 {[%clk 0:00:08.9]}
31... f5 {[%clk 0:00:28.9]} 32. h4 {[%clk 0:00:07]} 32... Qf6 {[%clk 0:00:26.6]}
33. Qh7 {[%clk 0:00:06.3]} 33... Qg6+ {[%clk 0:00:23.3]} 34. Qxg6 {[%clk
0:00:04.2]} 34... fxg6 {[%clk 0:00:24.2]} 35. Kg3 {[%clk 0:00:04.7]} 35... e5
{[%clk 0:00:23.6]} 36. h5 {[%clk 0:00:05]} 36... gxh5 {[%clk 0:00:23.1]} 37. Kh4
{[%clk 0:00:05.6]} 37... Kc6 {[%clk 0:00:22.9]} 38. Kxh5 {[%clk 0:00:06.3]}
38... Kxc5 {[%clk 0:00:23.1]} 39. Kg5 {[%clk 0:00:07]} 39... f4 {[%clk
0:00:23.6]} 40. Kf5 {[%clk 0:00:05.1]} 40... Kd5 {[%clk 0:00:23.6]} 41. Kf6
{[%clk 0:00:05.4]} 41... b5 {[%clk 0:00:23.9]} 42. Ke7 {[%clk 0:00:06.1]} 42...
a5 {[%clk 0:00:24.3]} 0-1

[Event "Early-Titled-Tuesday-Blitz-April-02-2024"]
[Site "Chess.com"]
[Date "2024.04.02"]
[Round "3"]
[White "temus_galaktionov"]
[Black "krstulov_alex"]
[Result "0-1"]
[WhiteElo "2849"]
[BlackElo "2674"]
[TimeControl "180+1"]
[EndTime "8:27:52 PDT"]
[Termination "krstulov_alex won by checkmate"]

1. d4 {[%clk 0:03:00.9]} 1... Nf6 {[%clk 0:02:59.6]} 2. Nf3 {[%clk 0:03:00.6]}
2... g6 {[%clk 0:02:58]} 3. c4 {[%clk 0:03:00.5]} 3... Bg7 {[%clk 0:02:58.4]} 4.
Nc3 {[%clk 0:03:00.2]} 4... O-O {[%clk 0:02:58.2]} 5. e4 {[%clk 0:03:00.1]} 5...
d6 {[%clk 0:02:57]} 6. Be2 {[%clk 0:03:00.6]} 6... Nbd7 {[%clk 0:02:57]} 7. O-O
{[%clk 0:03:01]} 7... e5 {[%clk 0:02:57.6]} 8. Be3 {[%clk 0:03:01.5]} 8... Qe7
{[%clk 0:02:58]} 9. dxe5 {[%clk 0:02:58.5]} 9... dxe5 {[%clk 0:02:57.5]} 10. Nd5
{[%clk 0:02:56.6]} 10... Qd8 {[%clk 0:02:41.4]} 11. Qc2 {[%clk 0:02:56.4]} 11...
Nh5 {[%clk 0:02:38.2]} 12. c5 {[%clk 0:02:52.5]} 12... c6 {[%clk 0:02:34.6]} 13.
Nc3 {[%clk 0:02:52.1]} 13... Qe7 {[%clk 0:02:35]} 14. b4 {[%clk 0:02:51.7]}
14... Nf4 {[%clk 0:02:32.6]} 15. Bc4 {[%clk 0:02:51.2]} 15... a5 {[%clk
0:02:32]} 16. a3 {[%clk 0:02:49.9]} 16... Nf6 {[%clk 0:02:32.7]} 17. Rad1 {[%clk
0:02:33.2]} 17... Bg4 {[%clk 0:02:07.6]} 18. Bxf4 {[%clk 0:02:11.4]} 18... exf4
{[%clk 0:01:54]} 19. Rfe1 {[%clk 0:02:11.2]} 19... Bxf3 {[%clk 0:01:49.6]} 20.
gxf3 {[%clk 0:02:12.1]} 20... axb4 {[%clk 0:01:48.7]} 21. axb4 {[%clk
0:02:11.9]} 21... Ra3 {[%clk 0:01:49.4]} 22. e5 {[%clk 0:01:59.3]} 22... Nh5
{[%clk 0:01:40.4]} 23. e6 {[%clk 0:01:47.3]} 23... Qg5+ {[%clk 0:01:37.7]} 24.
Kh1 {[%clk 0:01:46]} 24... Rxc3 {[%clk 0:01:31.7]} 25. exf7+ {[%clk 0:01:46]}
25... Kh8 {[%clk 0:01:32.1]} 26. Qe2 {[%clk 0:01:37.7]} 26... Nf6 {[%clk
0:01:16.4]} 27. Be6 {[%clk 0:01:27.7]} 27... Qh5 {[%clk 0:01:13.7]} 28. Rd3
{[%clk 0:01:25.5]} 28... Nd5 {[%clk 0:00:52.8]} 29. Rxc3 {[%clk 0:01:24.7]}
29... Nxc3 {[%clk 0:00:52.6]} 30. Qd3 {[%clk 0:01:22.8]} 30... Nb5 {[%clk
0:00:48.2]} 31. Re4 {[%clk 0:01:11.9]} 31... Qh4 {[%clk 0:00:38.3]} 32. Kg2
{[%clk 0:01:10.9]} 32... Qg5+ {[%clk 0:00:37.7]} 33. Kh3 {[%clk 0:01:10.8]}
33... Nc7 {[%clk 0:00:33.5]} 34. Bc4 {[%clk 0:00:49.2]} 34... Nd5 {[%clk
0:00:33.1]} 35. Re8 {[%clk 0:00:45.9]} 35... Nf6 {[%clk 0:00:23.9]} 36. Re2
{[%clk 0:00:20.6]} 36... h5 {[%clk 0:00:19.4]} 37. Qd6 {[%clk 0:00:18.4]} 37...
Ng4 {[%clk 0:00:18]} 38. Be6 {[%clk 0:00:13.8]} 38... Ne5 {[%clk 0:00:16.6]} 39.
Re4 {[%clk 0:00:08.4]} 39... Nxf3 {[%clk 0:00:16.1]} 40. Qxf4 {[%clk 0:00:08.4]}
40... Ng1# {[%clk 0:00:16.7]} 0-1

[Event "Early-Titled-Tuesday-Blitz-April-02-2024"]
[Site "Chess.com"]
[Date "2024.04.02"]
[Round "3"]
[White "viktorgen2021"]
[Black "davidkalashian"]
[Result "0-1"]
[WhiteElo "2486"]
[BlackElo "2659"]
[TimeControl "180+1"]
[EndTime "8:27:53 PDT"]
[Termination "davidkalashian won by checkmate"]

1. d4 {[%clk 0:03:00.9]} 1... Nf6 {[%clk 0:02:59.9]} 2. Nf3 {[%clk 0:02:59.1]}
2... g6 {[%clk 0:02:59.5]} 3. g3 {[%clk 0:02:59.5]} 3... Bg7 {[%clk 0:02:59.6]}
4. Bg2 {[%clk 0:03:00.2]} 4... O-O {[%clk 0:03:00.5]} 5. O-O {[%clk 0:03:00.9]}
5... d6 {[%clk 0:03:01.3]} 6. a4 {[%clk 0:03:00.9]} 6... c6 {[%clk 0:03:00.9]}
7. a5 {[%clk 0:03:01]} 7... Bg4 {[%clk 0:03:00.9]} 8. Nc3 {[%clk 0:03:00.1]}
8... a6 {[%clk 0:02:57.5]} 9. Qd3 {[%clk 0:02:59.4]} 9... Nbd7 {[%clk
0:02:56.9]} 10. h3 {[%clk 0:02:58.5]} 10... Bxf3 {[%clk 0:02:56.7]} 11. exf3
{[%clk 0:02:38.9]} 11... Qc7 {[%clk 0:02:57.6]} 12. f4 {[%clk 0:02:38.7]} 12...
e5 {[%clk 0:02:52.9]} 13. dxe5 {[%clk 0:02:35.3]} 13... dxe5 {[%clk 0:02:53.8]}
14. Re1 {[%clk 0:02:30.8]} 14... Rad8 {[%clk 0:02:49]} 15. Qc4 {[%clk
0:02:22.6]} 15... Rfe8 {[%clk 0:02:43.7]} 16. Be3 {[%clk 0:02:11.4]} 16... Nh5
{[%clk 0:02:42]} 17. Rad1 {[%clk 0:01:06.7]} 17... exf4 {[%clk 0:02:29.9]} 18.
Nd5 {[%clk 0:01:06.5]} 18... Qxa5 {[%clk 0:02:14.2]} 19. Nxf4 {[%clk 0:01:06.5]}
19... Nxf4 {[%clk 0:02:10.3]} 20. Qxf4 {[%clk 0:01:01.1]} 20... Nf6 {[%clk
0:02:06.3]} 21. c3 {[%clk 0:00:45.8]} 21... Nd5 {[%clk 0:01:59.4]} 22. Bxd5
{[%clk 0:00:33]} 22... Rxd5 {[%clk 0:01:58.7]} 23. Bd4 {[%clk 0:00:19.2]} 23...
Rxe1+ {[%clk 0:01:49.7]} 24. Rxe1 {[%clk 0:00:17.6]} 24... Bxd4 {[%clk
0:01:42.7]} 25. Re8+ {[%clk 0:00:17.4]} 25... Kg7 {[%clk 0:01:43]} 26. cxd4
{[%clk 0:00:18]} 26... Rf5 {[%clk 0:01:14.6]} 27. Qb8 {[%clk 0:00:16.1]} 27...
Qb4 {[%clk 0:01:12]} 28. Rg8+ {[%clk 0:00:13.5]} 28... Kh6 {[%clk 0:01:11.8]}
29. Kg2 {[%clk 0:00:08.6]} 29... Qe7 {[%clk 0:00:41.1]} 30. g4 {[%clk
0:00:04.4]} 30... Qe4+ {[%clk 0:00:35.1]} 31. Kf1 {[%clk 0:00:04.8]} 31... Qd3+
{[%clk 0:00:29.5]} 32. Kg1 {[%clk 0:00:04.7]} 32... Qd1+ {[%clk 0:00:27.1]} 33.
Kh2 {[%clk 0:00:03.1]} 33... Rxf2+ {[%clk 0:00:24]} 34. Kg3 {[%clk 0:00:03.4]}
34... Rf3+ {[%clk 0:00:20.4]} 35. Kh2 {[%clk 0:00:01.4]} 35... Qe2+ {[%clk
0:00:19.9]} 36. Kg1 {[%clk 0:00:02]} 36... Rf1# {[%clk 0:00:20.2]} 0-1

[Event "Early-Titled-Tuesday-Blitz-April-02-2024"]
[Site "Chess.com"]
[Date "2024.04.02"]
[Round "3"]
[White "ChessFighter_2011"]
[Black "Statham_01"]
[Result "1-0"]
[WhiteElo "2922"]
[BlackElo "2625"]
[TimeControl "180+1"]
[EndTime "8:27:57 PDT"]
[Termination "ChessFighter_2011 won by checkmate"]

1. e4 {[%clk 0:03:00.9]} 1... e5 {[%clk 0:03:00.1]} 2. Nf3 {[%clk 0:02:59.8]}
2... Nf6 {[%clk 0:03:00.5]} 3. d4 {[%clk 0:02:57.1]} 3... Nxe4 {[%clk
0:02:58.3]} 4. Bd3 {[%clk 0:02:56.6]} 4... d5 {[%clk 0:02:58.1]} 5. Nxe5 {[%clk
0:02:57]} 5... Nd7 {[%clk 0:02:56.8]} 6. Nxd7 {[%clk 0:02:54.4]} 6... Bxd7
{[%clk 0:02:57.7]} 7. Nc3 {[%clk 0:02:52]} 7... Nxc3 {[%clk 0:02:32.6]} 8. bxc3
{[%clk 0:02:52.9]} 8... Bd6 {[%clk 0:02:31.2]} 9. O-O {[%clk 0:02:51.5]} 9...
O-O {[%clk 0:02:24.8]} 10. Qh5 {[%clk 0:02:47.6]} 10... g6 {[%clk 0:02:24.6]}
11. Qxd5 {[%clk 0:02:40.8]} 11... Qh4 {[%clk 0:01:51.3]} 12. g3 {[%clk
0:02:35.2]} 12... Qh3 {[%clk 0:01:51.6]} 13. Qg2 {[%clk 0:02:20.6]} 13... Qh5
{[%clk 0:01:51.4]} 14. Re1 {[%clk 0:02:16.4]} 14... Bg4 {[%clk 0:01:39.1]} 15.
Be4 {[%clk 0:01:58]} 15... Rae8 {[%clk 0:01:35.3]} 16. Bd2 {[%clk 0:01:52.9]}
16... c6 {[%clk 0:01:06.9]} 17. f3 {[%clk 0:01:47.8]} 17... Bh3 {[%clk 0:01:00]}
18. Qf2 {[%clk 0:01:47.7]} 18... f5 {[%clk 0:00:58.5]} 19. Bd3 {[%clk
0:01:47.4]} 19... f4 {[%clk 0:00:50.8]} 20. g4 {[%clk 0:01:45.3]} 20... Qg5
{[%clk 0:00:50.5]} 21. Rxe8 {[%clk 0:01:32.6]} 21... Rxe8 {[%clk 0:00:51.4]} 22.
Re1 {[%clk 0:01:32.6]} 22... Rf8 {[%clk 0:00:45.8]} 23. Kh1 {[%clk 0:01:23.4]}
23... Kg7 {[%clk 0:00:29.4]} 24. c4 {[%clk 0:01:23.2]} 24... Rf7 {[%clk
0:00:27.5]} 25. Bc3 {[%clk 0:01:14.6]} 25... Kh6 {[%clk 0:00:25.6]} 26. d5
{[%clk 0:00:59.9]} 26... cxd5 {[%clk 0:00:22.8]} 27. cxd5 {[%clk 0:01:00.8]}
27... Re7 {[%clk 0:00:14]} 28. Be4 {[%clk 0:00:55.5]} 28... b6 {[%clk
0:00:12.5]} 29. Bd4 {[%clk 0:00:54.3]} 29... Rc7 {[%clk 0:00:11.2]} 30. Bd3
{[%clk 0:00:50.2]} 30... Re7 {[%clk 0:00:10.8]} 31. Re6 {[%clk 0:00:48.1]} 31...
Rxe6 {[%clk 0:00:05.2]} 32. dxe6 {[%clk 0:00:49]} 32... Be7 {[%clk 0:00:06.1]}
33. Bf1 {[%clk 0:00:43.1]} 33... Bxf1 {[%clk 0:00:04.4]} 34. Qxf1 {[%clk
0:00:44]} 34... Qh4 {[%clk 0:00:03.4]} 35. Be5 {[%clk 0:00:38.7]} 35... g5
{[%clk 0:00:01.8]} 36. Bc3 {[%clk 0:00:38.7]} 36... Kg6 {[%clk 0:00:01.8]} 37.
Qd3+ {[%clk 0:00:34.3]} 37... Kh6 {[%clk 0:00:02.4]} 38. Kg2 {[%clk 0:00:34.6]}
38... Bc5 {[%clk 0:00:01.4]} 39. Qe2 {[%clk 0:00:32.6]} 39... Kg6 {[%clk
0:00:02]} 40. e7 {[%clk 0:00:32.2]} 40... Bxe7 {[%clk 0:00:02.6]} 41. Qe6+
{[%clk 0:00:32.4]} 41... Bf6 {[%clk 0:00:02.7]} 42. Qxf6# {[%clk 0:00:32.7]} 1-0

[Event "Early-Titled-Tuesday-Blitz-April-02-2024"]
[Site "Chess.com"]
[Date "2024.04.02"]
[Round "3"]
[White "inagreV"]
[Black "sonicdravise"]
[Result "0-1"]
[WhiteElo "2385"]
[BlackElo "2609"]
[TimeControl "180+1"]
[EndTime "8:27:57 PDT"]
[Termination "sonicdravise won by resignation"]

1. e4 {[%clk 0:03:00.9]} 1... c5 {[%clk 0:03:00.3]} 2. Nf3 {[%clk 0:03:00.8]}
2... d6 {[%clk 0:03:00.6]} 3. Bb5+ {[%clk 0:03:00.7]} 3... Nd7 {[%clk
0:03:00.5]} 4. d4 {[%clk 0:03:00.1]} 4... cxd4 {[%clk 0:03:00.5]} 5. Qxd4 {[%clk
0:02:59.7]} 5... a6 {[%clk 0:02:51]} 6. Be2 {[%clk 0:02:58.3]} 6... Ngf6 {[%clk
0:02:48.8]} 7. O-O {[%clk 0:02:57.9]} 7... e5 {[%clk 0:02:46.4]} 8. Qe3 {[%clk
0:02:57.7]} 8... Nc5 {[%clk 0:02:46.4]} 9. Nfd2 {[%clk 0:02:57.4]} 9... Be7
{[%clk 0:02:37.3]} 10. c4 {[%clk 0:02:57.2]} 10... O-O {[%clk 0:02:33.6]} 11.
Nc3 {[%clk 0:02:57.3]} 11... Ng4 {[%clk 0:02:33.2]} 12. Bxg4 {[%clk 0:02:54.6]}
12... Bxg4 {[%clk 0:02:33.9]} 13. f3 {[%clk 0:02:45.5]} 13... Bg5 {[%clk
0:02:27.6]} 14. Qe2 {[%clk 0:02:43.5]} 14... Bd7 {[%clk 0:02:21.1]} 15. Rd1
{[%clk 0:02:42.6]} 15... Ne6 {[%clk 0:02:19.6]} 16. Nb3 {[%clk 0:02:35.3]} 16...
Nf4 {[%clk 0:01:58.1]} 17. Bxf4 {[%clk 0:02:23.9]} 17... Bxf4 {[%clk 0:01:59]}
18. Rxd6 {[%clk 0:02:20.5]} 18... Qe7 {[%clk 0:01:53.5]} 19. Rad1 {[%clk
0:02:19.5]} 19... Be6 {[%clk 0:01:51.9]} 20. c5 {[%clk 0:02:15.5]} 20... Rad8
{[%clk 0:01:38.7]} 21. Nd5 {[%clk 0:02:06.1]} 21... Bxd5 {[%clk 0:01:35.3]} 22.
R1xd5 {[%clk 0:02:04.4]} 22... Qg5 {[%clk 0:01:26.7]} 23. Qd3 {[%clk 0:01:54.3]}
23... Rde8 {[%clk 0:01:22]} 24. Nd2 {[%clk 0:01:48.1]} 24... Be3+ {[%clk
0:01:15.5]} 25. Kh1 {[%clk 0:01:45.2]} 25... Bd4 {[%clk 0:01:05.9]} 26. b4
{[%clk 0:01:41.6]} 26... Qh4 {[%clk 0:00:52.1]} 27. Qe2 {[%clk 0:01:36.1]} 27...
a5 {[%clk 0:00:37.6]} 28. b5 {[%clk 0:01:32.7]} 28... a4 {[%clk 0:00:36.7]} 29.
Nf1 {[%clk 0:01:31]} 29... Rc8 {[%clk 0:00:34.7]} 30. c6 {[%clk 0:01:18.6]}
30... bxc6 {[%clk 0:00:34.8]} 31. bxc6 {[%clk 0:01:14.5]} 31... Rb8 {[%clk
0:00:34.6]} 32. c7 {[%clk 0:00:46.6]} 32... Rbc8 {[%clk 0:00:19]} 33. Rc6 {[%clk
0:00:38.6]} 33... Qe7 {[%clk 0:00:17.1]} 34. g3 {[%clk 0:00:30.3]} 34... Rxc7
{[%clk 0:00:16]} 35. Qc4 {[%clk 0:00:20.8]} 35... Rxc6 {[%clk 0:00:15.1]} 36.
Qxc6 {[%clk 0:00:21.7]} 36... Qa3 {[%clk 0:00:14.5]} 37. Kg2 {[%clk 0:00:17.7]}
37... Qxa2+ {[%clk 0:00:14]} 38. Kh3 {[%clk 0:00:18.5]} 38... Qf2 {[%clk
0:00:13.8]} 0-1

[Event "Early-Titled-Tuesday-Blitz-April-02-2024"]
[Site "Chess.com"]
[Date "2024.04.02"]
[Round "3"]
[White "bipe137"]
[Black "viviania"]
[Result "0-1"]
[WhiteElo "2673"]
[BlackElo "2896"]
[TimeControl "180+1"]
[EndTime "8:27:59 PDT"]
[Termination "viviania won on time"]

1. d4 {[%clk 0:03:00.9]} 1... d5 {[%clk 0:02:59.5]} 2. c4 {[%clk 0:03:01.5]}
2... Nc6 {[%clk 0:02:59.7]} 3. Nf3 {[%clk 0:03:00.8]} 3... Bg4 {[%clk
0:02:59.1]} 4. cxd5 {[%clk 0:03:01]} 4... Bxf3 {[%clk 0:02:59]} 5. gxf3 {[%clk
0:03:01.5]} 5... Qxd5 {[%clk 0:02:59]} 6. e3 {[%clk 0:03:01.5]} 6... e6 {[%clk
0:02:59.2]} 7. Nc3 {[%clk 0:03:02]} 7... Qh5 {[%clk 0:02:59.2]} 8. Be2 {[%clk
0:02:54.1]} 8... O-O-O {[%clk 0:02:08.6]} 9. f4 {[%clk 0:02:46.9]} 9... Qf5
{[%clk 0:02:07.8]} 10. Bf3 {[%clk 0:02:44.9]} 10... Nf6 {[%clk 0:01:56.2]} 11.
Qa4 {[%clk 0:02:34.4]} 11... Nd5 {[%clk 0:01:54.1]} 12. Nxd5 {[%clk 0:02:22.7]}
12... exd5 {[%clk 0:01:53.8]} 13. Bd2 {[%clk 0:02:21]} 13... Kb8 {[%clk
0:01:46.1]} 14. Rg1 {[%clk 0:02:13.7]} 14... g6 {[%clk 0:01:42]} 15. Rc1 {[%clk
0:02:09]} 15... Qe6 {[%clk 0:01:30.8]} 16. Kd1 {[%clk 0:01:52]} 16... Ne7 {[%clk
0:01:19.7]} 17. Ba5 {[%clk 0:01:42.3]} 17... Rc8 {[%clk 0:01:14.7]} 18. Rc3
{[%clk 0:01:35]} 18... c6 {[%clk 0:01:02.7]} 19. Ra3 {[%clk 0:01:08.7]} 19...
Nf5 {[%clk 0:01:02.4]} 20. Bb4 {[%clk 0:01:06.5]} 20... Bxb4 {[%clk 0:01:01.6]}
21. Qxb4 {[%clk 0:01:07]} 21... Rc7 {[%clk 0:00:53.6]} 22. Be2 {[%clk
0:01:03.2]} 22... c5 {[%clk 0:00:29.4]} 23. dxc5 {[%clk 0:00:54.9]} 23... d4
{[%clk 0:00:29.3]} 24. Bc4 {[%clk 0:00:29.7]} 24... Qc6 {[%clk 0:00:21.6]} 25.
Qa5 {[%clk 0:00:25.2]} 25... a6 {[%clk 0:00:18.6]} 26. e4 {[%clk 0:00:20.5]}
26... Qxe4 {[%clk 0:00:17.9]} 27. Bxa6 {[%clk 0:00:20.7]} 27... Qb1+ {[%clk
0:00:14]} 28. Kd2 {[%clk 0:00:21.2]} 28... Qxb2+ {[%clk 0:00:13.9]} 29. Kd3
{[%clk 0:00:19.6]} 29... Re8 {[%clk 0:00:12.6]} 30. Kc4 {[%clk 0:00:05.7]} 30...
Qe2+ {[%clk 0:00:12.3]} 31. Kb4 {[%clk 0:00:03.5]} 31... Qxa6 {[%clk 0:00:11.8]}
32. Qxa6 {[%clk 0:00:03.3]} 32... bxa6 {[%clk 0:00:12]} 33. Ka5 {[%clk 0:00:04]}
33... Rxc5+ {[%clk 0:00:11.4]} 34. Kb6 {[%clk 0:00:04]} 34... Rc7 {[%clk
0:00:10.5]} 0-1

[Event "Early-Titled-Tuesday-Blitz-April-02-2024"]
[Site "Chess.com"]
[Date "2024.04.02"]
[Round "3"]
[White "ccccvhhhj"]
[Black "BestestBP"]
[Result "1-0"]
[WhiteElo "2411"]
[BlackElo "2207"]
[TimeControl "180+1"]
[EndTime "8:27:59 PDT"]
[Termination "ccccvhhhj won by checkmate"]

1. e4 {[%clk 0:03:00.9]} 1... e5 {[%clk 0:02:54.2]} 2. Nf3 {[%clk 0:03:01.4]}
2... Nc6 {[%clk 0:02:51.5]} 3. d4 {[%clk 0:03:01.9]} 3... exd4 {[%clk
0:02:51.3]} 4. Nxd4 {[%clk 0:03:02.8]} 4... Nf6 {[%clk 0:02:51.8]} 5. Bb5 {[%clk
0:03:02.5]} 5... Nxe4 {[%clk 0:02:04.3]} 6. O-O {[%clk 0:03:01.5]} 6... Nd6
{[%clk 0:01:51.1]} 7. Bxc6 {[%clk 0:02:19.6]} 7... dxc6 {[%clk 0:01:48.9]} 8.
Re1+ {[%clk 0:02:19.9]} 8... Be7 {[%clk 0:01:48.8]} 9. Qe2 {[%clk 0:02:20.1]}
9... c5 {[%clk 0:01:23.2]} 10. Nb3 {[%clk 0:01:17.2]} 10... c4 {[%clk
0:01:22.7]} 11. Nd4 {[%clk 0:01:16.4]} 11... c5 {[%clk 0:01:22.6]} 12. Nf3
{[%clk 0:01:10.8]} 12... Be6 {[%clk 0:01:15.7]} 13. Be3 {[%clk 0:01:07.8]} 13...
b6 {[%clk 0:01:03.1]} 14. Nbd2 {[%clk 0:01:07.8]} 14... O-O {[%clk 0:01:02]} 15.
Rad1 {[%clk 0:01:05.7]} 15... Qc7 {[%clk 0:00:56.9]} 16. Bf4 {[%clk 0:01:05.7]}
16... Qb7 {[%clk 0:00:42.4]} 17. Ng5 {[%clk 0:00:59.9]} 17... Bxg5 {[%clk
0:00:34.9]} 18. Bxg5 {[%clk 0:01:00.1]} 18... Rfe8 {[%clk 0:00:32.1]} 19. Qh5
{[%clk 0:00:44.9]} 19... h6 {[%clk 0:00:23.9]} 20. Bxh6 {[%clk 0:00:38.6]} 20...
gxh6 {[%clk 0:00:23.2]} 21. Qxh6 {[%clk 0:00:39.5]} 21... Nf5 {[%clk 0:00:20.6]}
22. Qg5+ {[%clk 0:00:39.9]} 22... Ng7 {[%clk 0:00:20.9]} 23. Ne4 {[%clk
0:00:39]} 23... Kf8 {[%clk 0:00:05.4]} 24. Qh6 {[%clk 0:00:29.9]} 24... Ke7
{[%clk 0:00:04.5]} 25. Qxg7 {[%clk 0:00:28.3]} 25... Rg8 {[%clk 0:00:04.1]} 26.
Qf6+ {[%clk 0:00:29]} 26... Kf8 {[%clk 0:00:04.5]} 27. f3 {[%clk 0:00:21.1]}
27... Qe7 {[%clk 0:00:03.5]} 28. Qf4 {[%clk 0:00:19.2]} 28... f6 {[%clk
0:00:02.4]} 29. Nxf6 {[%clk 0:00:19.1]} 29... Qf7 {[%clk 0:00:02.3]} 30. Qd6+
{[%clk 0:00:18.6]} 30... Kg7 {[%clk 0:00:02.4]} 31. Ne4 {[%clk 0:00:14.7]} 31...
Bf5 {[%clk 0:00:02.4]} 32. Qe5+ {[%clk 0:00:14.8]} 32... Kh7 {[%clk 0:00:02.6]}
33. Nf6+ {[%clk 0:00:14.4]} 33... Kh6 {[%clk 0:00:02.1]} 34. Qxf5 {[%clk
0:00:12.3]} 34... Rg5 {[%clk 0:00:02.7]} 35. Qf4 {[%clk 0:00:11.7]} 35... Rf8
{[%clk 0:00:02.1]} 36. h4 {[%clk 0:00:11.9]} 36... Qxf6 {[%clk 0:00:02.3]} 37.
Qxg5+ {[%clk 0:00:12.1]} 37... Qxg5 {[%clk 0:00:02.9]} 38. hxg5+ {[%clk
0:00:13]} 38... Kxg5 {[%clk 0:00:03.8]} 39. Re5+ {[%clk 0:00:12.7]} 39... Kf4
{[%clk 0:00:03.6]} 40. Re4+ {[%clk 0:00:13.6]} 40... Kg3 {[%clk 0:00:03.9]} 41.
Rg4# {[%clk 0:00:13.7]} 1-0